bitfinex/quotes_BTCUSD_20251221
["timestamp","ask_amount","ask_price","bid_price","bid_amount"]
[1766349418845,0.2852,88386.0,88375.0,0.01624541]
[1766349419148,0.2852,88386.0,88376.0,0.01131528]
[1766349421298,0.00568,88385.0,88378.0,0.01131503]
[1766349421630,0.00568,88385.0,88379.0,0.0111149]
[1766349421843,0.00558,88385.0,88379.0,0.0111149]
[1766349422046,0.00548,88385.0,88380.0,0.01131477]
[1766349422272,0.00568,88394.0,88388.0,0.01131375]
[1766349423685,0.00568,88394.0,88387.0,0.01131388]
[1766349423888,0.00568,88394.0,88388.0,0.01131375]
[1766349425252,0.00568,88394.0,88387.0,0.01131388]
[1766349425418,0.00568,88394.0,88388.0,0.01131375]
[1766349425643,0.00568,88394.0,88387.0,0.01131388]
[1766349426812,0.00568,88394.0,88381.0,0.00568]
[1766349426813,0.000549,88387.0,88381.0,0.00568]
[1766349427018,0.22288298,88394.0,88381.0,0.00568]
[1766349427226,0.01131311,88393.0,88381.0,0.00568]
[1766349427604,0.01131311,88393.0,88381.0,0.01699464]
[1766349428187,0.02830775,88393.0,88381.0,0.01699464]
[1766349429005,0.01699464,88393.0,88383.0,0.01131439]
[1766349429801,0.22288464,88393.0,88383.0,0.01131439]
[1766349431276,0.22288464,88393.0,88384.0,0.06788558]
[1766349431497,0.01699464,88393.0,88384.0,0.06788558]
[1766349431704,0.01699464,88393.0,88387.0,0.01131388]
[1766349432086,0.01699464,88393.0,88386.0,0.011314]
[1766349432526,0.01699464,88393.0,88387.0,0.01131388]
[1766349433133,0.01699464,88393.0,88386.0,0.011314]
[1766349434000,0.00568,88394.0,88386.0,0.011314]
[1766349434209,0.00568,88394.0,88383.0,0.01131439]
[1766349434381,0.00568,88394.0,88384.0,0.01131426]
[1766349434586,0.00568,88394.0,88385.0,0.01131413]
[1766349435045,0.00568,88394.0,88384.0,0.01131426]
[1766349435239,0.01699439,88394.0,88385.0,0.01131413]
[1766349438196,0.01699439,88394.0,88384.0,0.01131426]
[1766349439133,0.01699439,88394.0,88385.0,0.01131413]
[1766349439546,0.01699439,88394.0,88384.0,0.01131426]
[1766349440146,0.01699439,88394.0,88385.0,0.01131413]
[1766349443234,0.01699439,88394.0,88386.0,0.011314]
[1766349443895,0.01699439,88394.0,88387.0,0.01131388]
[1766349444250,0.01699439,88394.0,88388.0,0.01131375]
[1766349444654,0.01699439,88394.0,88389.0,0.01131362]
[1766349445191,0.01699439,88394.0,88387.0,0.01131388]
[1766349445369,0.01699439,88394.0,88388.0,0.01131375]
[1766349445577,0.01699439,88394.0,88389.0,0.01131362]
[1766349446898,0.01699439,88394.0,88390.0,0.01131349]
[1766349448357,0.01699439,88394.0,88389.0,0.01131362]
[1766349448773,0.01699439,88394.0,88390.0,0.01131349]
[1766349449720,0.01699439,88394.0,88389.0,0.01131362]
[1766349450151,0.01699439,88394.0,88390.0,0.01131349]
[1766349450856,0.01699439,88394.0,88389.0,0.01131362]
[1766349451319,0.01699439,88394.0,88390.0,0.01131349]
[1766349451990,0.01699439,88394.0,88389.0,0.01131362]
[1766349452141,0.01699439,88394.0,88390.0,0.01131349]
[1766349452339,0.50476,88404.0,88394.0,0.01186298]
[1766349452545,0.00568,88401.0,88395.0,0.01131285]
[1766349452955,0.00568,88401.0,88394.0,0.01131298]
[1766349453353,0.00568,88401.0,88393.0,0.01131311]
[1766349453577,0.00568,88401.0,88394.0,0.01131298]
[1766349454005,0.00568,88401.0,88395.0,0.01131285]
[1766349454215,0.00472,88401.0,88392.0,0.01131324]
[1766349454444,0.01699157,88405.0,88393.0,0.01131311]
[1766349454591,0.01357251,88404.0,88392.0,0.01131324]
[1766349454789,0.22819251,88404.0,88392.0,0.01131324]
[1766349454994,0.23950421,88404.0,88391.0,0.01699336]
[1766349455223,0.01131272,88396.0,88391.0,0.005131]
[1766349455449,0.01131247,88398.0,88391.0,0.005131]
[1766349456098,0.01131324,88392.0,88384.0,0.01131311]
[1766349456293,0.00568,88397.0,88382.0,0.00568]
[1766349456294,0.21486,88386.0,88382.0,0.00568]
[1766349456606,0.21486,88386.0,88380.0,0.01699477]
[1766349456792,0.21486,88386.0,88381.0,0.01131464]
[1766349457442,0.21486,88386.0,88382.0,0.01131452]
[1766349457774,0.21486,88386.0,88381.0,0.01131464]
[1766349457971,0.21486,88386.0,88380.0,0.01699477]
[1766349458155,0.21486,88386.0,88381.0,0.01131464]
[1766349459551,0.214311,88386.0,88380.0,0.01699477]
[1766349459913,0.214311,88386.0,88381.0,0.01131464]
[1766349460528,0.214311,88386.0,88380.0,0.01699477]
[1766349460794,0.214311,88386.0,88380.0,0.00568]
[1766349461042,0.214311,88386.0,88381.0,0.01131464]
[1766349461739,0.214311,88386.0,88380.0,0.01699477]
[1766349461970,0.214311,88386.0,88381.0,0.01131464]
[1766349462215,0.214311,88386.0,88380.0,0.01699477]
[1766349463267,0.214311,88386.0,88380.0,0.00568]
[1766349463690,0.01357251,88386.0,88379.0,0.00568]
[1766349463692,0.21486,88384.0,88379.0,0.00568]
[1766349469119,0.0407146,88412.0,88379.0,0.00568]
[1766349469120,0.0113149,88389.0,88384.0,0.00055]
[1766349469479,0.0111149,88389.0,88384.0,0.00055]
[1766349469682,0.0111149,88389.0,88380.0,0.01131477]
[1766349470279,0.0111149,88389.0,88379.0,0.0169949]
[1766349470486,0.0111149,88389.0,88380.0,0.01131477]
[1766349470846,0.0111149,88389.0,88379.0,0.0169949]
[1766349471792,0.0111149,88389.0,88380.0,0.01131477]
[1766349474664,0.0111149,88389.0,88379.0,0.0169949]
[1766349477078,0.0111149,88389.0,88380.0,0.01131477]
[1766349477258,0.0111149,88389.0,88379.0,0.0169949]
[1766349480387,0.0111149,88389.0,88380.0,0.01131477]
[1766349480590,0.0111149,88389.0,88381.0,0.01131464]
[1766349480841,0.0111149,88389.0,88379.0,0.00568]
[1766349481075,0.0111149,88389.0,88379.0,0.0169949]
[1766349481459,0.0111149,88389.0,88380.0,0.01131477]
[1766349481640,0.0111149,88389.0,88379.0,0.0169949]
[1766349481841,0.0111149,88389.0,88380.0,0.01131477]
[1766349482244,0.0111149,88389.0,88379.0,0.0169949]
[1766349482606,0.0111149,88389.0,88380.0,0.01131477]
[1766349485968,0.0111149,88389.0,88379.0,0.0169949]
[1766349486152,0.0111149,88389.0,88380.0,0.01131477]
[1766349486995,0.0111149,88389.0,88381.0,0.01131464]
[1766349487984,0.0111149,88389.0,88380.0,0.01131477]
[1766349488407,0.29762,88392.0,88380.0,0.01131477]
[1766349488645,0.33160711,88392.0,88380.0,0.01131477]
[1766349488888,0.01131336,88391.0,88379.0,0.47884797]
[1766349489102,0.33160711,88392.0,88379.0,0.0169949]
[1766349489307,0.34292035,88392.0,88380.0,0.01131477]
[1766349493767,0.01131336,88391.0,88379.0,0.0169949]
[1766349495015,0.33160711,88392.0,88380.0,0.01131477]
[1766349495217,0.33160711,88392.0,88381.0,0.01131464]
[1766349495417,0.29762,88392.0,88381.0,0.01131464]
[1766349495829,0.0169949,88391.0,88381.0,0.01131464]
[1766349495999,0.0169949,88391.0,88380.0,0.01131477]
[1766349497399,0.0169949,88391.0,88379.0,0.0169949]
[1766349497589,0.0169949,88391.0,88380.0,0.01131477]
[1766349499973,0.0169949,88391.0,88379.0,0.0169949]
[1766349500340,0.02830826,88391.0,88379.0,0.0169949]
[1766349501065,0.0169949,88391.0,88380.0,0.01131477]
[1766349502912,0.0169949,88391.0,88383.0,0.01131439]
[1766349503321,0.0169949,88391.0,88385.0,0.01131413]
[1766349504053,0.0169949,88391.0,88386.0,0.011314]
[1766349504262,0.29762,88392.0,88386.0,0.011314]
[1766349505713,0.29762,88392.0,88387.0,0.01131388]
[1766349505914,0.29762,88392.0,88386.0,0.011314]
[1766349506136,0.29762,88392.0,88388.0,0.01131375]
[1766349506341,0.29762,88392.0,88387.0,0.01131388]
[1766349506342,0.00568,88392.0,88387.0,0.01131388]
[1766349506570,0.00568,88392.0,88388.0,0.01131375]
[1766349506994,0.03398711,88394.0,88388.0,0.01131375]
[1766349507195,0.00568,88396.0,88387.0,0.01131388]
[1766349507435,0.00568,88395.0,88388.0,0.01131375]
[1766349507649,0.00568,88395.0,88387.0,0.01131388]
[1766349508366,0.00568,88395.0,88386.0,0.011314]
[1766349508571,0.00568,88395.0,88388.0,0.01131375]
[1766349509577,0.00568,88396.0,88390.0,0.01131349]
[1766349509778,0.00568,88396.0,88389.0,0.01131362]
[1766349510189,0.00568,88396.0,88390.0,0.01131349]
[1766349510402,0.00568,88396.0,88391.0,0.01131336]
[1766349510787,0.00568,88396.0,88390.0,0.01131349]
[1766349510987,0.00568,88397.0,88390.0,0.01131349]
[1766349511392,0.00568,88397.0,88388.0,0.01131375]
[1766349511593,0.00568,88397.0,88389.0,0.01131362]
[1766349512039,0.00568,88397.0,88390.0,0.01131349]
[1766349512204,0.00568,88397.0,88389.0,0.01131362]
[1766349512942,0.00568,88397.0,88390.0,0.01131349]
[1766349513143,0.00568,88397.0,88392.0,0.01131324]
[1766349513501,0.00568,88397.0,88393.0,0.01131311]
[1766349513702,0.00568,88397.0,88392.0,0.01131324]
[1766349514086,0.00568,88397.0,88391.0,0.01131336]
[1766349514537,0.00568,88397.0,88392.0,0.01131324]
[1766349515318,0.00568,88397.0,88391.0,0.01131336]
[1766349515519,0.00568,88397.0,88393.0,0.01131311]
[1766349517111,0.00568,88397.0,88394.0,0.01131298]
[1766349517594,0.00568,88397.0,88393.0,0.01131311]
[1766349518506,0.00568,88397.0,88394.0,0.01131298]
[1766349518627,0.00568,88397.0,88393.0,0.01131311]
[1766349519946,0.23185375,88398.0,88393.0,0.01131311]
[1766349520199,0.22054,88398.0,88393.0,0.01131311]
[1766349520350,0.00568,88397.0,88393.0,0.01131311]
[1766349522760,0.00568,88397.0,88390.0,0.01131349]
[1766349522962,0.00568,88397.0,88393.0,0.01131311]
[1766349523166,0.00568,88397.0,88391.0,0.01131336]
[1766349523847,0.00568,88397.0,88392.0,0.01131324]
[1766349524126,0.00568,88397.0,88391.0,0.01131336]
[1766349524127,0.00568,88397.0,88393.0,0.01131311]
[1766349524516,0.00568,88397.0,88392.0,0.01131324]
[1766349524721,0.00568,88397.0,88393.0,0.01131311]
[1766349525336,0.00568,88397.0,88392.0,0.01131324]
[1766349526057,0.00568,88397.0,88393.0,0.01131311]
[1766349527655,0.00568,88397.0,88391.0,0.01131336]
[1766349527859,0.00568,88397.0,88392.0,0.01131324]
[1766349528471,0.00568,88397.0,88393.0,0.01131311]
[1766349528674,0.00568,88397.0,88392.0,0.01131324]
[1766349529253,0.0169926,88397.0,88384.0,0.00568]
[1766349529434,0.00568,88397.0,88387.0,0.01131388]
[1766349529798,0.21151,88397.0,88387.0,0.01131388]
[1766349530405,0.21151,88397.0,88388.0,0.01131375]
[1766349531813,0.21151,88397.0,88389.0,0.01131362]
[1766349532013,0.21151,88397.0,88387.0,0.01076488]
[1766349532214,0.21151,88397.0,88388.0,0.01131375]
[1766349533502,0.21151,88397.0,88389.0,0.01131362]
[1766349533705,0.21151,88397.0,88386.0,0.02262736]
[1766349534518,0.21151,88397.0,88388.0,0.01131375]
[1766349535182,0.21151,88397.0,88386.0,0.02262736]
[1766349535358,0.21151,88397.0,88387.0,0.01131388]
[1766349535611,0.21151,88397.0,88388.0,0.01131375]
[1766349535991,0.21151,88397.0,88390.0,0.01131349]
[1766349536470,0.21151,88397.0,88389.0,0.01131362]
[1766349536815,0.21151,88397.0,88390.0,0.01131349]
[1766349537169,0.21151,88397.0,88391.0,0.01131336]
[1766349537375,0.21151,88397.0,88390.0,0.01131349]
[1766349538204,0.21151,88397.0,88389.0,0.01131362]
[1766349538449,0.21151,88397.0,88390.0,0.01131349]
[1766349539451,0.21151,88397.0,88389.0,0.01131362]
[1766349541855,0.00180347,88397.0,88394.0,0.01131298]
[1766349542067,0.04528,88409.0,88395.0,0.01131285]
[1766349542068,0.00568,88401.0,88395.0,0.01131285]
[1766349542257,0.01131362,88400.0,88395.0,0.01131285]
[1766349542469,0.01131362,88400.0,88390.0,0.01131349]
[1766349542470,0.21714362,88400.0,88388.0,0.01131375]
[1766349542675,0.21714362,88400.0,88391.0,0.01131336]
[1766349542894,0.21714362,88400.0,88390.0,0.01131349]
[1766349542895,0.000549,88391.0,88387.0,0.01158023]
[1766349543094,0.28769,88387.0,88380.0,0.00568]
[1766349543227,0.28769,88387.0,88380.0,0.00548]
[1766349545788,0.28769,88387.0,88379.0,0.00568]
[1766349550466,0.29900388,88387.0,88379.0,0.00568]
[1766349550696,0.28769,88387.0,88379.0,0.00568]
[1766349561577,0.28769,88387.0,88380.0,0.01131477]
[1766349561788,0.01131541,88388.0,88379.0,0.0169949]
[1766349561986,0.01121541,88388.0,88379.0,0.0169949]
[1766349562215,0.01111541,88388.0,88379.0,0.0169949]
[1766349562402,0.21979,88392.0,88379.0,0.0169949]
[1766349562614,0.03398745,88390.0,88380.0,0.01131477]
[1766349563030,0.03398745,88390.0,88381.0,0.01131464]
[1766349563535,0.03398745,88390.0,88380.0,0.01131477]
[1766349563941,0.03398745,88390.0,88381.0,0.01131464]
[1766349564142,0.03398745,88390.0,88380.0,0.01131477]
[1766349566638,0.03398745,88390.0,88379.0,0.0169949]
[1766349566872,0.03398745,88390.0,88380.0,0.01131477]
[1766349567241,0.03398745,88390.0,88379.0,0.0169949]
[1766349568674,0.04530094,88390.0,88379.0,0.00568]
[1766349568880,0.01131362,88389.0,88379.0,0.00568]
[1766349569477,0.02262878,88389.0,88379.0,0.00568]
[1766349569875,0.01131375,88388.0,88379.0,0.00568]
[1766349570512,0.000549,88379.0,88376.0,0.01131349]
[1766349570914,0.01131477,88380.0,88376.0,0.01111349]
[1766349571116,0.23110477,88380.0,88373.0,0.00603752]
[1766349571318,0.0113149,88379.0,88373.0,0.00603752]
[1766349571667,0.24242121,88380.0,88373.0,0.00603752]
[1766349572958,0.21979,88379.0,88373.0,0.00603752]
[1766349573164,0.29628,88379.0,88373.0,0.00603752]
[1766349573368,0.21979,88378.0,88373.0,0.00035752]
[1766349573544,0.28768556,88371.0,88367.0,0.00568]
[1766349573798,0.01131605,88370.0,88365.0,0.00568]
[1766349574199,0.23115038,88371.0,88365.0,0.00568]
[1766349574349,0.01131605,88370.0,88365.0,0.00568]
[1766349574576,0.01131605,88370.0,88364.0,0.00568]
[1766349574774,0.23115038,88371.0,88364.0,0.00568]
[1766349575171,0.21983446,88371.0,88364.0,0.00568]
[1766349576080,0.23115038,88371.0,88364.0,0.00568]
[1766349576781,0.01131605,88370.0,88364.0,0.00568]
[1766349577101,0.22940605,88370.0,88364.0,0.00568]
[1766349577669,0.01131618,88369.0,88364.0,0.00568]
[1766349577881,0.01131644,88367.0,88364.0,0.00568]
[1766349578084,0.06789725,88369.0,88364.0,0.00568]
[1766349578085,0.01131631,88368.0,88364.0,0.00568]
[1766349578290,0.01131631,88368.0,88360.0,0.00568]
[1766349578291,0.22995582,88364.0,88360.0,0.00568]
[1766349578502,0.22995582,88364.0,88358.0,0.05]
[1766349578503,0.22940682,88364.0,88358.0,0.05]
[1766349578706,0.21809,88364.0,88358.0,0.05568]
[1766349598407,0.21809,88363.0,88358.0,0.055131]
[1766349599957,0.22940695,88363.0,88358.0,0.055131]
[1766349600388,0.21809,88363.0,88358.0,0.055131]
[1766349601342,0.22940618,88369.0,88363.0,0.000549]
[1766349601560,0.30399631,88368.0,88358.0,0.06644859]
[1766349601766,0.52188631,88368.0,88358.0,0.06644859]
[1766349601971,0.03379631,88368.0,88361.0,0.01131721]
[1766349602177,0.03379631,88368.0,88362.0,0.01131708]
[1766349602378,0.00568,88370.0,88363.0,0.01131695]
[1766349602809,0.00568,88370.0,88363.0,0.00802695]
[1766349603141,0.00568,88370.0,88362.0,0.01131708]
[1766349603345,0.02263249,88377.0,88302.0,0.0004]
[1766349603346,0.21809,88388.0,88369.0,0.01357251]
[1766349603544,0.01167125,88388.0,88373.0,0.01131567]
[1766349603750,0.011314,88386.0,88374.0,0.01131554]
[1766349603946,0.01131413,88385.0,88375.0,0.00568]
[1766349604146,0.011314,88386.0,88375.0,0.00568]
[1766349604355,0.011314,88386.0,88375.0,0.01735125]
[1766349604356,0.01131413,88385.0,88375.0,0.01735125]
[1766349604631,0.05657132,88384.0,88375.0,0.01735125]
[1766349604884,0.22940503,88378.0,88371.0,0.00568]
[1766349605114,0.01131541,88375.0,88367.0,0.03399107]
[1766349605318,0.21938541,88375.0,88368.0,0.00568]
[1766349605449,0.20807,88375.0,88368.0,0.00568]
[1766349605855,0.21938541,88375.0,88368.0,0.00568]
[1766349606149,0.20807,88375.0,88368.0,0.00568]
[1766349609431,0.00568,88379.0,88369.0,0.01131618]
[1766349609822,0.00568,88379.0,88368.0,0.01699631]
[1766349610251,0.0169949,88379.0,88368.0,0.00568]
[1766349610775,0.00568,88379.0,88368.0,0.00568]
[1766349610995,0.00568,88379.0,88368.0,0.01699631]
[1766349611190,0.21375,88379.0,88368.0,0.01699631]
[1766349611629,0.21375,88379.0,88369.0,0.01131618]
[1766349612250,0.21375,88379.0,88368.0,0.01699631]
[1766349612735,0.21375,88379.0,88368.0,0.00568]
[1766349612942,0.21375,88379.0,88368.0,0.01699631]
[1766349613368,0.5071049,88379.0,88368.0,0.00568]
[1766349613578,0.20807,88378.0,88368.0,0.00568]
[1766349613937,0.20807,88378.0,88368.0,0.01699631]
[1766349614679,0.20807,88378.0,88370.0,0.01131605]
[1766349614841,0.20807,88378.0,88368.0,0.01699631]
[1766349615763,0.20807,88378.0,88369.0,0.01131618]
[1766349616107,0.20807,88378.0,88368.0,0.01699631]
[1766349617846,0.20807,88378.0,88368.0,0.00568]
[1766349618048,0.20807,88378.0,88368.0,0.01699631]
[1766349619194,0.49011,88378.0,88368.0,0.01699631]
[1766349619340,0.49011,88378.0,88369.0,0.01131618]
[1766349619545,0.49011,88378.0,88368.0,0.01699631]
[1766349620140,0.49011,88378.0,88369.0,0.01131618]
[1766349620293,0.49011,88378.0,88368.0,0.01699631]
[1766349622244,0.49011,88378.0,88368.0,0.00568]
[1766349622384,0.49011,88378.0,88368.0,0.01699631]
[1766349623446,0.49011,88378.0,88369.0,0.01131618]
[1766349623679,0.20807,88377.0,88368.0,0.01699631]
[1766349623854,0.20807,88377.0,88369.0,0.01131618]
[1766349624116,0.20807,88377.0,88369.0,0.01111618]
[1766349624304,0.20807,88377.0,88368.0,0.01699631]
[1766349625947,0.20807,88377.0,88369.0,0.01131618]
[1766349626902,0.20807,88377.0,88368.0,0.01699631]
[1766349627588,0.20807,88377.0,88369.0,0.01131618]
[1766349627758,0.20807,88377.0,88368.0,0.01699631]
[1766349628808,0.20807,88377.0,88368.0,0.07357773]
[1766349629001,0.20807,88377.0,88368.0,0.01699631]
[1766349629712,0.28204,88378.0,88369.0,0.01131618]
[1766349630051,0.49368,88378.0,88369.0,0.01131618]
[1766349630331,0.27902,88377.0,88369.0,0.01131618]
[1766349630784,0.27902,88377.0,88370.0,0.01131605]
[1766349631149,0.27882,88377.0,88370.0,0.01131605]
[1766349633333,0.27882,88377.0,88371.0,0.01131592]
[1766349633714,0.27882,88377.0,88370.0,0.01131605]
[1766349634119,0.27882,88377.0,88371.0,0.01131592]
[1766349634525,0.27882,88377.0,88370.0,0.01131605]
[1766349635093,0.27882,88377.0,88371.0,0.01131592]
[1766349635852,0.27882,88377.0,88370.0,0.01131605]
[1766349636382,0.27882,88377.0,88371.0,0.01131592]
[1766349637218,0.27882,88377.0,88372.0,0.0113158]
[1766349637632,0.27882,88377.0,88373.0,0.01131567]
[1766349638047,0.27882,88377.0,88372.0,0.0113158]
[1766349641033,0.27882,88377.0,88371.0,0.01131592]
[1766349641416,0.27882,88377.0,88372.0,0.0113158]
[1766349641818,0.27882,88377.0,88371.0,0.01131592]
[1766349642154,0.27882,88377.0,88372.0,0.0113158]
[1766349642493,0.27882,88377.0,88371.0,0.01131592]
[1766349643776,0.27882,88377.0,88372.0,0.0113158]
[1766349643913,0.27882,88377.0,88371.0,0.01131592]
[1766349649043,0.27882,88377.0,88368.0,0.07357735]
[1766349649215,0.27882,88377.0,88369.0,0.01131618]
[1766349649420,0.49566,88377.0,88368.0,0.01699631]
[1766349649620,0.49566,88377.0,88368.0,0.00568]
[1766349649824,0.00568,88379.0,88354.0,0.22636031]
[1766349649825,0.05657971,88371.0,88356.0,0.06131785]
[1766349650030,0.21684,88367.0,88358.0,0.01699631]
[1766349650269,0.21684,88367.0,88358.0,0.01679631]
[1766349650480,0.21684,88367.0,88358.0,0.0281139]
[1766349650771,0.21684,88367.0,88359.0,0.01131746]
[1766349650941,0.2924,88368.0,88360.0,0.01131733]
[1766349651120,0.2924,88368.0,88359.0,0.01131746]
[1766349651330,0.2924,88368.0,88360.0,0.01131733]
[1766349653042,0.2924,88368.0,88361.0,0.01131721]
[1766349653877,0.2924,88368.0,88360.0,0.01131733]
[1766349654309,0.2924,88368.0,88361.0,0.01131721]
[1766349655999,0.2924,88368.0,88360.0,0.01131733]
[1766349657832,0.2924,88368.0,88359.0,0.01131746]
[1766349657980,0.21684,88367.0,88359.0,0.01131746]
[1766349658390,0.21684,88367.0,88360.0,0.01131733]
[1766349658772,0.21684,88367.0,88359.0,0.01131746]
[1766349660195,0.21684,88367.0,88360.0,0.01131733]
[1766349660875,0.21684,88367.0,88361.0,0.01131721]
[1766349661107,0.21684,88367.0,88360.0,0.01131733]
[1766349661278,0.21684,88367.0,88361.0,0.01131721]
[1766349662026,0.21684,88367.0,88362.0,0.01131708]
[1766349662441,0.21664,88367.0,88362.0,0.01131708]
[1766349662844,0.21664,88367.0,88361.0,0.01131721]
[1766349663259,0.21664,88367.0,88362.0,0.01131708]
[1766349663668,0.21664,88367.0,88361.0,0.01131721]
[1766349663878,0.21664,88367.0,88359.0,0.06790426]
[1766349664126,0.21664,88367.0,88360.0,0.01131733]
[1766349664968,0.21664,88367.0,88361.0,0.06790319]
[1766349665177,0.2924,88368.0,88364.0,0.01131682]
[1766349665388,0.2924,88368.0,88365.0,0.01131669]
[1766349665559,0.20844,88372.0,88365.0,0.01131669]
[1766349665975,0.20844,88372.0,88364.0,0.01131682]
[1766349666364,0.20844,88372.0,88363.0,0.01131695]
[1766349666567,0.20844,88372.0,88364.0,0.01131682]
[1766349667282,0.20844,88372.0,88363.0,0.01131695]
[1766349667827,0.20844,88372.0,88366.0,0.01131656]
[1766349668815,0.20844,88372.0,88367.0,0.01131644]
[1766349669603,0.20844,88372.0,88366.0,0.01131656]
[1766349669946,0.20844,88372.0,88367.0,0.01131644]
[1766349670800,0.20844,88372.0,88366.0,0.01131656]
[1766349670995,0.20844,88372.0,88367.0,0.01131644]
[1766349671440,0.20844,88372.0,88368.0,0.01131631]
[1766349671643,0.20844,88372.0,88367.0,0.01131644]
[1766349672335,0.20844,88372.0,88368.0,0.01131631]
[1766349672557,0.20844,88372.0,88367.0,0.01131644]
[1766349674415,0.00568,88374.0,88372.0,0.000549]
[1766349674639,0.00568,88374.0,88367.0,0.01131644]
[1766349674813,0.00568,88374.0,88370.0,0.01131605]
[1766349675226,0.00568,88374.0,88371.0,0.01131592]
[1766349675430,0.005131,88374.0,88371.0,0.01131592]
[1766349675679,0.00568,88375.0,88373.0,0.01131567]
[1766349676417,0.00178613,88375.0,88373.0,0.01131567]
[1766349676622,0.00178613,88375.0,88373.0,0.06789345]
[1766349676821,0.20844,88386.0,88375.0,0.05657648]
[1766349677024,0.00568,88385.0,88378.0,0.01131503]
[1766349677228,0.00568,88385.0,88375.0,0.05657648]
[1766349677428,0.00568,88385.0,88377.0,0.01131516]
[1766349677630,0.00568,88385.0,88376.0,0.01131528]
[1766349677836,0.00568,88385.0,88377.0,0.01131516]
[1766349678036,0.000549,88377.0,88376.0,0.01131528]
[1766349678447,0.00568,88385.0,88378.0,0.01131503]
[1766349678979,0.00568,88385.0,88380.0,0.01131477]
[1766349679182,0.00568,88385.0,88378.0,0.01131503]
[1766349679603,0.00568,88385.0,88377.0,0.01131516]
[1766349679955,0.00568,88385.0,88378.0,0.01131503]
[1766349681208,0.00568,88385.0,88379.0,0.0113149]
[1766349681580,0.00568,88385.0,88380.0,0.01131477]
[1766349681819,0.00568,88385.0,88379.0,0.0113149]
[1766349682375,0.00568,88385.0,88378.0,0.01131503]
[1766349682507,0.00568,88385.0,88379.0,0.0113149]
[1766349683129,0.00568,88385.0,88378.0,0.01131503]
[1766349683361,0.00568,88385.0,88377.0,0.01131516]
[1766349683531,0.00568,88385.0,88376.0,0.01131528]
[1766349683734,0.00568,88385.0,88378.0,0.01131503]
[1766349688876,0.00568,88385.0,88379.0,0.0113149]
[1766349689658,0.00568,88385.0,88378.0,0.01131503]
[1766349693049,0.00568,88385.0,88379.0,0.0113149]
[1766349693890,0.00568,88385.0,88378.0,0.01131503]
[1766349694148,0.00568,88385.0,88379.0,0.0113149]
[1766349694560,0.00568,88385.0,88378.0,0.01131503]
[1766349694709,0.00568,88385.0,88379.0,0.0113149]
[1766349697755,0.00568,88385.0,88380.0,0.01131477]
[1766349698037,0.2054875,88388.0,88385.0,0.01131413]
[1766349698038,0.0003575,88388.0,88385.0,0.01131413]
[1766349698193,0.0003575,88388.0,88383.0,0.01131439]
[1766349698431,0.0003575,88388.0,88384.0,0.01131426]
[1766349700353,0.0003575,88388.0,88383.0,0.01131439]
[1766349700682,0.0003575,88388.0,88384.0,0.01131426]
[1766349701096,0.0003575,88388.0,88385.0,0.01131413]
[1766349701723,0.0003575,88388.0,88384.0,0.01131426]
[1766349701903,0.000549,88385.0,88384.0,0.01131426]
[1766349702112,0.0003575,88388.0,88384.0,0.01131426]
[1766349702641,0.0003575,88388.0,88385.0,0.01131413]
[1766349705649,0.0003575,88388.0,88385.0,0.01076513]
[1766349707395,5e-07,88388.0,88385.0,0.01076513]
[1766349708635,5e-07,88388.0,88386.0,0.05657004]
[1766349710067,5e-07,88388.0,88385.0,0.01131413]
[1766349712146,5e-07,88388.0,88386.0,0.05657004]
[1766349715625,0.205487,88386.0,88381.0,0.03398595]
[1766349715834,0.205487,88386.0,88374.0,0.00568]
[1766349715835,0.20513,88384.0,88374.0,0.00568]
[1766349716050,0.20513,88384.0,88373.0,0.00568]
[1766349716051,0.20513,88378.0,88373.0,0.00568]
[1766349716220,0.20513,88377.0,88373.0,0.00568]
[1766349716637,0.20513,88377.0,88373.0,0.01699567]
[1766349717499,0.20513,88377.0,88374.0,0.01131554]
[1766349717907,0.20513,88377.0,88373.0,0.01699567]
[1766349718952,0.20513,88377.0,88374.0,0.01131554]
[1766349719780,0.20513,88377.0,88373.0,0.01699567]
[1766349719948,0.20513,88377.0,88374.0,0.01131554]
[1766349720732,0.20513,88377.0,88374.0,0.00543477]
[1766349721590,0.26079,88378.0,88374.0,0.00543477]
[1766349724124,0.26079,88378.0,88375.0,0.01131541]
[1766349724535,0.26079,88378.0,88374.0,0.00543477]
[1766349724740,0.26079,88378.0,88375.0,0.01131541]
[1766349725196,0.26079,88384.0,88378.0,0.000742]
[1766349725418,0.26079,88384.0,88377.0,0.01131516]
[1766349725645,0.26069,88384.0,88377.0,0.01131516]
[1766349725860,0.26059,88384.0,88376.0,0.01131528]
[1766349726064,0.26059,88384.0,88375.0,0.01131541]
[1766349726279,0.44607,88384.0,88376.0,0.01131528]
[1766349726452,0.44607,88384.0,88375.0,0.01131541]
[1766349727157,0.44607,88384.0,88376.0,0.01131528]
[1766349729420,0.445878,88384.0,88377.0,0.01131516]
[1766349729649,0.445878,88384.0,88378.0,0.01131503]
[1766349729845,0.445878,88384.0,88377.0,0.01131516]
[1766349734342,0.445878,88384.0,88378.0,0.01131503]
[1766349734935,0.445878,88384.0,88377.0,0.01131516]
[1766349736545,0.445878,88384.0,88376.0,0.01131528]
[1766349737077,0.445878,88384.0,88377.0,0.01131516]
[1766349738660,0.260398,88384.0,88377.0,0.01131516]
[1766349738821,0.445878,88384.0,88376.0,0.01131528]
[1766349739240,0.260398,88384.0,88375.0,0.01131541]
[1766349739446,0.18548,88383.0,88376.0,0.01131528]
[1766349739639,0.18548,88383.0,88377.0,0.01111516]
[1766349743092,0.00568,88385.0,88379.0,0.0113149]
[1766349743290,0.00548,88385.0,88379.0,0.0113149]
[1766349743693,0.00548,88385.0,88378.0,0.01131503]
[1766349745025,5e-07,88388.0,88378.0,0.01131503]
[1766349746342,5e-07,88388.0,88379.0,0.0113149]
[1766349747138,5e-07,88388.0,88379.0,0.06788941]
[1766349747518,5e-07,88388.0,88382.0,0.01131452]
[1766349748254,5e-07,88388.0,88381.0,0.01131464]
[1766349748458,5e-07,88388.0,88382.0,0.01131452]
[1766349748862,5e-07,88388.0,88381.0,0.01131464]
[1766349749255,5e-07,88388.0,88382.0,0.01131452]
[1766349749482,5e-07,88388.0,88381.0,0.01699464]
[1766349750552,5e-07,88388.0,88382.0,0.01131452]
[1766349751228,5e-07,88388.0,88381.0,0.00568]
[1766349751488,5e-07,88388.0,88381.0,0.01699464]
[1766349753882,5e-07,88388.0,88382.0,0.01131452]